fUSD/lending_fUSD_20250616
["ID","MTS","AMOUNT","RATE_DAILY","PERIOD"]
[366066986,1750045852485,-151.0,0.00016581,2]
[366066987,1750045852494,-164.669711,0.00016581,2]
[366066988,1750045852504,-164.669711,0.00016581,2]
[366066989,1750045852512,-151.0,0.00016581,2]
[366066990,1750045852522,-151.0,0.00016581,2]
[366066991,1750045852532,-151.0,0.00016581,2]
[366066992,1750045852541,-151.0,0.00016581,2]
[366066993,1750045852551,-151.0,0.00016581,2]
[366066994,1750045852561,-151.0,0.00016581,2]
[366066995,1750045852570,-263.27639,0.00016581,2]
[366066996,1750045852580,-263.27639,0.00016581,2]
[366066997,1750045852590,-244.057713,0.00016581,2]
[366066998,1750045852601,-244.057713,0.00016581,2]
[366066999,1750045852610,-244.057713,0.00016581,2]
[366067000,1750045852619,-402.498021,0.00016581,2]
[366067001,1750045852629,-244.057713,0.00016581,2]
[366067002,1750045852639,-244.057713,0.00016581,2]
[366067003,1750045852649,-244.057713,0.00016581,2]
[366067004,1750045852659,-402.498021,0.00016581,2]
[366067005,1750045852668,-260.400621,0.00016581,2]
[366067006,1750045852677,-260.400621,0.00016581,2]
[366067007,1750045852687,-151.0,0.00016581,2]
[366067008,1750045852696,-273.41264729,0.00016581,2]
[366067009,1750045852706,-176.863456,0.00016581,2]
[366067010,1750045852716,-176.863456,0.00016581,2]
[366067011,1750045852726,-176.863456,0.00016581,2]
[366067012,1750045852737,-176.863456,0.00016581,2]
[366067013,1750045852746,-176.863456,0.00016581,2]
[366067014,1750045852757,-176.863456,0.00016581,2]
[366067015,1750045852767,-151.0,0.00016581,2]
[366067016,1750045852776,-151.0,0.00016581,2]
[366067017,1750045852786,-212.264132,0.00016581,2]
[366067018,1750045852795,-220.569412,0.00016581,2]
[366067019,1750045852805,-220.569412,0.00016581,2]
[366067020,1750045852814,-220.569412,0.00016581,2]
[366067021,1750045852823,-220.569412,0.00016581,2]
[366067022,1750045852832,-151.0,0.00016581,2]
[366067023,1750045852842,-1030.279953,0.00016581,2]
[366067024,1750045852851,-1030.279953,0.00016581,2]
[366067025,1750045852861,-286.847384,0.00016581,2]
[366067026,1750045852870,-286.847384,0.00016581,2]
[366067027,1750045852880,-286.847384,0.00016581,2]
[366067028,1750045852889,-286.847384,0.00016581,2]
[366067029,1750045852898,-286.847384,0.00016581,2]
[366067030,1750045852908,-286.847384,0.00016581,2]
[366067031,1750045852918,-19438.3729698,0.00016581,2]
[366067032,1750045852927,-151.0,0.00016581,2]
[366067033,1750045852937,-342.554427,0.00016581,2]
[366067034,1750045852948,-342.554427,0.00016581,2]
[366067035,1750045852966,-151.0,0.00016583,2]
[366067036,1750045852976,-151.0,0.00016583,2]
[366067037,1750045852988,-151.0,0.00016583,2]
[366067038,1750045852998,-151.0,0.00016583,2]
[366067039,1750045853008,-202.263444,0.00016583,2]
[366067040,1750045853017,-151.0,0.00016583,2]
[366067041,1750045853026,-320.968554,0.00016583,2]
[366067042,1750045853035,-320.968554,0.00016583,2]
[366067043,1750045853045,-248.68895007,0.00016583,2]
[366067044,1750045853054,-151.0,0.00016585,2]
[366067045,1750045853063,-1449.727524,0.00016585,2]
[366067046,1750045853073,-1449.727524,0.00016585,2]
[366067047,1750045853082,-151.0,0.00016585,2]
[366067048,1750045853091,-177.381427,0.00016585,2]
[366067049,1750045853100,-151.0,0.00016585,2]
[366067050,1750045853109,-177.381427,0.00016585,2]
[366067051,1750045853118,-1458.71121,0.00016585,2]
[366067052,1750045853128,-1458.71121,0.00016585,2]
[366067053,1750045853136,-151.0,0.00016585,2]
[366067054,1750045853146,-946.0,0.00016585,2]
[366067055,1750045853155,-3333.0,0.00016585,2]
[366067056,1750045853165,-637.0,0.00016585,2]
[366067057,1750045853174,-802.0,0.00016585,2]
[366067058,1750045853184,-1160.0,0.00016585,2]
[366067059,1750045853194,-1277.0,0.00016585,2]
[366067060,1750045853203,-2003.0,0.00016585,2]
[366067061,1750045853213,-590.0,0.00016585,2]
[366067062,1750045853223,-928.0,0.00016585,2]
[366067063,1750045853234,-558.0,0.00016585,2]
[366067064,1750045853244,-1674.0,0.00016585,2]
[366067065,1750045853254,-7112.0,0.00016585,2]
[366067066,1750045853264,-4090.0,0.00016585,2]
[366067067,1750045853276,-155.0,0.00016585,2]
[366067068,1750045853286,-884.0,0.00016585,2]
[366067069,1750045853295,-151.0,0.00016589,2]
[366067070,1750045853305,-151.0,0.00016589,2]
[366067071,1750045853315,-546.772754,0.00016589,2]
[366067072,1750045853324,-546.772754,0.00016589,2]
[366067073,1750045853334,-151.0,0.00016589,2]
[366067074,1750045853343,-252.452504,0.00016589,2]
[366067075,1750045853352,-964.394405,0.00016589,2]
[366067076,1750045853362,-964.394405,0.00016589,2]
[366067077,1750045853371,-187.797267,0.00016589,2]
[366067078,1750045853381,-187.797267,0.00016589,2]
[366067079,1750045853391,-534.17,0.00016589,2]
[366067080,1750045853400,-500.0,0.00016589,2]
[366067081,1750045853410,-500.0,0.00016589,2]
[366067082,1750045853420,-500.0,0.00016589,2]
[366067083,1750045853430,-602.26,0.00016589,2]
[366067084,1750045853440,-53348.79702977,0.0001659,2]
[366067085,1750045854238,-37674.46828192,0.0001659,2]
[366067086,1750045854255,-1319.39150096,0.0001659,2]
[366067087,1750045854381,-298.19581016,0.0001659,2]
[366067088,1750045855087,-490.0,0.00016438,2]
[366067089,1750045855098,-490.0,0.00016438,2]
[366067090,1750045855108,-854.0,0.00016585,2]
[366067091,1750045855119,-2100.00522253,0.0001659,2]
[366067092,1750045887612,-285.83,0.00015631,2]
[366067093,1750045917855,524.55553036,0.0002465,120]
[366067094,1750046051425,168.0,0.0001536,2]
[366067095,1750046053630,168.0,0.0001553,2]
[366067096,1750046067577,168.0,0.00015394,2]
[366067097,1750046072798,168.0,0.00015385,2]
[366067099,1750046074794,28.0,0.00013699,2]
[366067100,1750046074820,141.9,0.00013699,2]
[366067101,1750046084635,168.0,0.00015254,2]
[366067102,1750046089012,168.0,0.00015257,2]
[366067103,1750046310732,168.0,0.00015367,2]
[366067104,1750046346872,200.0,0.00015439,2]
[366067105,1750046450333,156.17755547,0.00023425,120]
[366067106,1750046451530,155.05887777,0.00024596,120]
[366067107,1750046612816,150.0,0.00016,5]
[366067121,1750046854708,666.0,0.00015353,2]
[366067126,1750046953143,182.09,0.0001535,2]
[366067129,1750047011885,204.0,0.00014693,2]
[366067131,1750047031739,-163.07,0.00015493,2]
[366067132,1750047031749,-250.00272301,0.00015493,2]
[366067133,1750047031759,-714.17,0.00015631,2]
[366067134,1750047031770,-168.0,0.00015633,2]
[366067135,1750047031780,-168.0,0.00015865,2]
[366067136,1750047031791,-618.41863136,0.0001592,2]
[366067137,1750047031842,-713.58136864,0.0001592,2]
[366067138,1750047031855,-166.26,0.00015932,2]
[366067139,1750047031866,-168.0,0.0001612,2]
[366067140,1750047031877,-300.0,0.00016199,2]
[366067141,1750047031887,-1200.0,0.00016199,2]
[366067142,1750047031897,-455.14,0.000162,2]
[366067143,1750047031907,-358.94,0.000162,2]
[366067144,1750047031917,-167.12,0.000162,2]
[366067145,1750047031927,-1115.37,0.000162,2]
[366067146,1750047031937,-168.0,0.00016243,2]
[366067147,1750047031947,-20801.61555758,0.00016248,2]
[366067148,1750047031963,-7142.856,0.00016248,2]
[366067149,1750047031974,-207.4,0.00016248,2]
[366067150,1750047031984,-1150.624096,0.00016258,2]
[366067151,1750047031994,-303.58,0.00016258,2]
[366067152,1750047032004,-1075.97446644,0.00016285,2]
[366067153,1750047032014,-251.54599156,0.00016285,2]
[366067154,1750047032024,-168.0,0.0001629,2]
[366067155,1750047032035,-23836.17720315,0.00016293,2]
[366067156,1750047032048,-305.32,0.00016293,2]
[366067158,1750047032066,-531.42879438,0.00016293,2]
[366067159,1750047032075,-150.5,0.000163,2]
[366067160,1750047032086,-44.31697619,0.00016303,2]
[366067161,1750047032099,-583.61909354,0.00016303,2]
[366067162,1750047032127,-558.92282832,0.00016303,2]
[366067291,1750047037693,-6220.28277395,0.00016303,2]
[366067292,1750047037703,-500.0,0.00016318,2]
[366067293,1750047037713,-500.0,0.00016318,2]
[366067294,1750047037723,-500.0,0.00016318,2]
[366067295,1750047037732,-500.0,0.00016318,2]
[366067296,1750047037741,-500.0,0.00016318,2]
[366067297,1750047037751,-500.0,0.00016318,2]
[366067298,1750047037761,-500.0,0.00016318,2]
[366067299,1750047037771,-500.0,0.00016318,2]
[366067300,1750047037781,-500.0,0.00016318,2]
[366067301,1750047037792,-500.0,0.00016318,2]
[366067302,1750047037801,-500.0,0.00016318,2]
[366067303,1750047037811,-500.0,0.00016318,2]
[366067304,1750047037821,-500.0,0.00016318,2]
[366067305,1750047037831,-500.0,0.00016318,2]
[366067306,1750047037841,-500.0,0.00016318,2]
[366067307,1750047037851,-151.0,0.00016318,2]
[366067308,1750047037860,-191.03031642,0.00016338,2]
[366067309,1750047037869,-161.78689494,0.00016338,2]
[366067310,1750047037879,-163.96198558,0.00016338,2]
[366067311,1750047037888,-166.80828564,0.00016338,2]
[366067312,1750047037899,-156.24964526,0.00016338,2]
[366067313,1750047037908,-1435.8254,0.00016338,2]
[366067314,1750047037918,-151.98104517,0.00016348,2]
[366067315,1750047037927,-7681.20591386,0.00016358,2]
[366067316,1750047037938,-166.8082856,0.00016393,2]
[366067317,1750047037947,-437.02692168,0.00016394,2]
[366067318,1750047037958,-826.62123663,0.00016412,2]
[366067319,1750047037967,-2360.19679253,0.00016413,2]
[366067320,1750047037979,-372.87803105,0.00016413,2]
[366067321,1750047038007,-1291.95,0.00016413,2]
[366067323,1750047038031,-555.23196307,0.00016413,2]
[366067326,1750047039906,-3385.15374603,0.00016413,2]
[366067327,1750047039916,-330.19,0.00016428,2]
[366067328,1750047039926,-240.35832168,0.00016437,2]
[366067329,1750047039936,-370.33437828,0.00016437,2]
[366067330,1750047039945,-176.06303191,0.00016437,2]
[366067331,1750047039955,-303.32,0.00016437,2]
[366067332,1750047039965,-833.8156298,0.00016438,2]
[366067333,1750047039975,-782.637829,0.00016438,2]
[366067334,1750047039984,-782.637829,0.00016438,2]
[366067335,1750047039993,-782.637829,0.00016438,2]
[366067336,1750047040003,-151.0,0.00016438,2]
[366067337,1750047040014,-151.0,0.00016438,2]
[366067338,1750047040023,-151.0,0.00016438,2]
[366067339,1750047040033,-782.637829,0.00016438,2]
[366067340,1750047040042,-782.637829,0.00016438,2]
[366067341,1750047040051,-782.637829,0.00016438,2]
[366067342,1750047040061,-151.0,0.00016438,2]
[366067343,1750047040070,-151.0,0.00016438,2]
[366067344,1750047040079,-151.0,0.00016438,2]
[366067345,1750047040416,-1021.386622,0.00016438,2]
[366067346,1750047040427,-1021.386622,0.00016438,2]
[366067347,1750047040437,-1021.386622,0.00016438,2]
[366067348,1750047040447,-1021.386622,0.00016438,2]
[366067349,1750047040456,-151.0,0.00016438,2]
[366067350,1750047040469,-151.0,0.00016438,2]
[366067351,1750047040479,-151.0,0.00016438,2]
[366067352,1750047040488,-474.4062018,0.00016438,2]
[366067353,1750047040498,-491.1211152,0.00016438,2]
[366067354,1750047040508,-216.39966314,0.00016438,2]
[366067355,1750047040519,-490.0,0.00016438,2]
[366067356,1750047040529,-491.26814246,0.00016438,2]
[366067357,1750047040538,-490.0,0.00016438,2]
[366067358,1750047040549,-151.0,0.00016438,2]
[366067359,1750047040559,-490.69535708,0.00016438,2]
[366067360,1750047040568,-151.0,0.00016438,2]
[366067361,1750047040578,-151.0,0.00016438,2]
[366067362,1750047040588,-490.58415937,0.00016438,2]
[366067363,1750047040598,-490.0,0.00016438,2]
[366067364,1750047040607,-491.35904544,0.00016438,2]
[366067365,1750047040618,-490.61557102,0.00016438,2]
[366067366,1750047040627,-490.0,0.00016438,2]
[366067367,1750047040638,-491.5086276,0.00016438,2]
[366067368,1750047040648,-490.0,0.00016438,2]
[366067369,1750047040657,-490.0,0.00016438,2]
[366067370,1750047040667,-491.51373169,0.00016438,2]
[366067371,1750047040677,-490.0,0.00016438,2]
[366067372,1750047040686,-488.85326175,0.00016438,2]
[366067373,1750047040696,-491.18716322,0.00016438,2]
[366067374,1750047040706,-490.0,0.00016438,2]
[366067375,1750047040716,-490.70243725,0.00016438,2]
[366067376,1750047040726,-490.32673116,0.00016438,2]
[366067377,1750047040735,-598.17495111,0.00016438,2]
[366067378,1750047040746,-490.0,0.00016438,2]
[366067379,1750047040756,-500.0,0.00016438,2]
[366067380,1750047040767,-500.0,0.00016438,2]
[366067381,1750047040778,-500.0,0.00016438,2]
[366067382,1750047040788,-500.0,0.00016438,2]
[366067383,1750047040799,-500.0,0.00016438,2]
[366067384,1750047040810,-327.31947713,0.00016438,2]
[366067385,1750047040820,-500.0,0.00016438,2]
[366067386,1750047040831,-500.0,0.00016438,2]
[366067387,1750047040840,-500.0,0.00016438,2]
[366067388,1750047040850,-2976.95693,0.00016438,2]
[366067389,1750047040860,-490.0,0.00016438,2]
[366067390,1750047040870,-500.0,0.00016438,2]
[366067391,1750047040880,-490.0,0.00016438,2]
[366067392,1750047040890,-1160.83,0.00016438,2]
[366067393,1750047040901,-4065.239726,0.00016438,2]
[366067394,1750047040912,-159.881043,0.00016438,2]
[366067395,1750047040922,-964.394405,0.00016438,2]
[366067396,1750047040932,-964.394405,0.00016438,2]
[366067397,1750047040943,-964.394405,0.00016438,2]
[366067398,1750047040953,-964.394405,0.00016438,2]
[366067399,1750047040963,-964.394405,0.00016438,2]
[366067400,1750047040974,-964.394405,0.00016438,2]
[366067401,1750047040984,-492.00723609,0.00016438,2]
[366067402,1750047040995,-300.15643806,0.00016438,2]
[366067403,1750047041006,-490.0,0.00016438,2]
[366067404,1750047041015,-490.0,0.00016438,2]
[366067405,1750047041025,-490.0,0.00016438,2]
[366067406,1750047041034,-490.0,0.00016438,2]
[366067407,1750047041044,-493.7286056,0.00016438,2]
[366067408,1750047041054,-490.0,0.00016438,2]
[366067409,1750047041064,-491.05454605,0.00016438,2]
[366067410,1750047041074,-490.0,0.00016438,2]
[366067411,1750047041083,-436.37575592,0.00016438,2]
[366067412,1750047041093,-496.53153022,0.00016438,2]
[366067413,1750047041103,-490.0,0.00016438,2]
[366067414,1750047041112,-1099.09,0.00016438,2]
[366067415,1750047041122,-490.0,0.00016438,2]
[366067416,1750047041132,-504.00148004,0.00016438,2]
[366067417,1750047041142,-521.86,0.00016438,2]
[366067418,1750047041152,-174.39409808,0.00016438,2]
[366067419,1750047041161,-880.59,0.00016438,2]
[366067420,1750047041171,-778.69,0.00016438,2]
[366067421,1750047041180,-490.0,0.00016438,2]
[366067422,1750047041190,-493.78336874,0.00016438,2]
[366067423,1750047041200,-493.5353936,0.00016438,2]
[366067424,1750047041210,-724.48,0.00016438,2]
[366067425,1750047041220,-872.32,0.00016438,2]
[366067426,1750047041230,-490.0,0.00016438,2]
[366067427,1750047041239,-490.0,0.00016438,2]
[366067428,1750047041249,-490.0,0.00016438,2]
[366067429,1750047041259,-749.59,0.00016438,2]
[366067430,1750047041269,-490.0,0.00016438,2]
[366067431,1750047041279,-490.0,0.00016438,2]
[366067432,1750047041289,-1521.4,0.00016438,2]
[366067433,1750047041298,-490.0,0.00016438,2]
[366067434,1750047041308,-490.0,0.00016438,2]
[366067435,1750047041317,-491.93552755,0.00016438,2]
[366067436,1750047041328,-493.67045002,0.00016438,2]
[366067437,1750047041338,-497.57872202,0.00016438,2]
[366067438,1750047041348,-490.0,0.00016438,2]
[366067439,1750047041358,-1180.45,0.00016438,2]
[366067440,1750047041368,-490.0,0.00016438,2]
[366067441,1750047041378,-490.0,0.00016438,2]
[366067442,1750047041388,-491.61421946,0.00016438,2]
[366067443,1750047041398,-490.0,0.00016438,2]
[366067444,1750047041407,-490.0,0.00016438,2]
[366067445,1750047041417,-406.65545927,0.00016438,2]
[366067446,1750047041427,-494.36688997,0.00016438,2]
[366067447,1750047041437,-490.0,0.00016438,2]
[366067448,1750047041448,-490.0,0.00016438,2]
[366067449,1750047041457,-490.0,0.00016438,2]
[366067450,1750047041470,-151.0,0.00016438,2]
[366067451,1750047041479,-151.0,0.00016438,2]
[366067452,1750047041489,-151.0,0.00016438,2]
[366067453,1750047041499,-492.6169623,0.00016438,2]
[366067454,1750047041510,-490.0,0.00016438,2]
[366067455,1750047041519,-593.88,0.00016438,2]
[366067456,1750047041529,-481.24287783,0.00016438,2]
[366067457,1750047041539,-490.0,0.00016438,2]
[366067458,1750047041550,-496.27785393,0.00016438,2]
[366067459,1750047041560,-490.0,0.00016438,2]
[366067460,1750047041571,-716.45,0.00016438,2]
[366067461,1750047041581,-492.38736297,0.00016438,2]
[366067462,1750047041592,-490.0,0.00016438,2]
[366067463,1750047041603,-490.0,0.00016438,2]
[366067464,1750047041614,-491.5898332,0.00016438,2]
[366067465,1750047041624,-490.0,0.00016438,2]
[366067466,1750047041635,-539.82,0.00016438,2]
[366067467,1750047041646,-490.0,0.00016438,2]
[366067468,1750047041657,-490.0,0.00016438,2]
[366067469,1750047041667,-490.0,0.00016438,2]
[366067470,1750047041676,-490.0,0.00016438,2]
[366067471,1750047041686,-494.45469456,0.00016438,2]
[366067472,1750047041697,-625.37,0.00016438,2]
[366067473,1750047041706,-501.88,0.00016438,2]
[366067474,1750047041716,-490.0,0.00016438,2]
[366067475,1750047041725,-490.0,0.00016438,2]
[366067476,1750047041735,-490.0,0.00016438,2]
[366067477,1750047041744,-490.0,0.00016438,2]
[366067478,1750047041754,-490.0,0.00016438,2]
[366067479,1750047041764,-800.76,0.00016438,2]
[366067480,1750047041774,-395.73284872,0.00016438,2]
[366067481,1750047041784,-361.69596325,0.00016438,2]
[366067482,1750047041794,-490.0,0.00016438,2]
[366067483,1750047041804,-491.74741739,0.00016438,2]
[366067484,1750047041813,-494.135658,0.00016438,2]
[366067485,1750047041823,-490.0,0.00016438,2]
[366067486,1750047041833,-491.2364745,0.00016438,2]
[366067487,1750047041843,-502.67955081,0.00016438,2]
[366067488,1750047041852,-490.0,0.00016438,2]
[366067489,1750047041862,-490.0,0.00016438,2]
[366067490,1750047041872,-490.0,0.00016438,2]
[366067491,1750047041881,-490.0,0.00016438,2]
[366067492,1750047041891,-491.77458165,0.00016438,2]
[366067493,1750047041900,-966.75,0.00016438,2]
[366067494,1750047041909,-841.38,0.00016438,2]
[366067495,1750047041919,-497.63430465,0.00016438,2]
[366067496,1750047041930,-653.36,0.00016438,2]
[366067497,1750047041939,-491.61154044,0.00016438,2]
[366067498,1750047041951,-704.58,0.00016438,2]
[366067499,1750047041961,-491.42602028,0.00016438,2]
[366067500,1750047041970,-490.0,0.00016438,2]
[366067501,1750047041980,-541.69,0.00016438,2]
[366067502,1750047041990,-914.3,0.00016438,2]
[366067503,1750047042000,-497.30409909,0.00016438,2]
[366067504,1750047042009,-490.0,0.00016438,2]
[366067505,1750047042019,-522.5,0.00016438,2]
[366067506,1750047042029,-614.25312638,0.00016438,2]
[366067507,1750047042039,-543.80454121,0.00016438,2]
[366067508,1750047042050,-595.85,0.00016438,2]
[366067509,1750047042060,-636.34,0.00016438,2]
[366067510,1750047042069,-492.93608638,0.00016438,2]
[366067511,1750047042080,-490.0,0.00016438,2]
[366067512,1750047042090,-1707.69,0.00016438,2]
[366067513,1750047042099,-770.58,0.00016438,2]
[366067514,1750047042110,-490.0,0.00016438,2]
[366067515,1750047042121,-1846.88,0.00016438,2]
[366067516,1750047042130,-490.0,0.00016438,2]
[366067517,1750047042140,-490.0,0.00016438,2]
[366067518,1750047042150,-491.07193339,0.00016438,2]
[366067519,1750047042159,-490.0,0.00016438,2]
[366067520,1750047042169,-490.0,0.00016438,2]
[366067521,1750047042179,-1469.24,0.00016438,2]
[366067522,1750047042190,-490.0,0.00016438,2]
[366067523,1750047042199,-490.0,0.00016438,2]
[366067524,1750047042209,-490.0,0.00016438,2]
[366067525,1750047042220,-627.52,0.00016438,2]
[366067526,1750047042229,-500.4,0.00016438,2]
[366067527,1750047042239,-490.0,0.00016438,2]
[366067528,1750047042249,-1671.71,0.00016438,2]
[366067529,1750047042259,-490.0,0.00016438,2]
[366067530,1750047042269,-490.0,0.00016438,2]
[366067531,1750047042279,-490.0,0.00016438,2]
[366067532,1750047042288,-490.0,0.00016438,2]
[366067533,1750047042299,-1391.31,0.00016438,2]
[366067534,1750047042309,-1481.39,0.00016438,2]
[366067535,1750047042318,-490.0,0.00016438,2]
[366067536,1750047042328,-490.0,0.00016438,2]
[366067537,1750047042338,-617.06,0.00016438,2]
[366067538,1750047042348,-490.0,0.00016438,2]
[366067539,1750047042358,-490.0,0.00016438,2]
[366067540,1750047042368,-271.99095853,0.00016438,2]
[366067541,1750047042378,-490.0,0.00016438,2]
[366067542,1750047042387,-676.8,0.00016438,2]
[366067543,1750047042397,-708.49,0.00016438,2]
[366067544,1750047042406,-173.68808729,0.00016438,2]
[366067545,1750047042417,-517.26,0.00016438,2]
[366067546,1750047042427,-306.69229381,0.00016438,2]
[366067547,1750047042436,-976.76,0.00016438,2]
[366067548,1750047042446,-490.0,0.00016438,2]
[366067549,1750047042456,-495.76487846,0.00016438,2]
[366067550,1750047042467,-695.71,0.00016438,2]
[366067551,1750047042479,-490.0,0.00016438,2]
[366067552,1750047042489,-490.0,0.00016438,2]
[366067553,1750047042499,-490.0,0.00016438,2]
[366067554,1750047042511,-831.13,0.00016438,2]
[366067555,1750047042520,-490.0,0.00016438,2]
[366067556,1750047042530,-1538.18,0.00016438,2]
[366067557,1750047042540,-490.0,0.00016438,2]
[366067558,1750047042550,-1209.14,0.00016438,2]
[366067559,1750047042560,-309.99,0.00016438,2]
[366067560,1750047042570,-501.94,0.00016438,2]
[366067561,1750047042580,-490.0,0.00016438,2]
[366067562,1750047042590,-490.0,0.00016438,2]
[366067563,1750047042600,-490.0,0.00016438,2]
[366067564,1750047042609,-490.0,0.00016438,2]
[366067565,1750047042619,-884.73,0.00016438,2]
[366067566,1750047042629,-490.0,0.00016438,2]
[366067567,1750047042639,-490.0,0.00016438,2]
[366067568,1750047042649,-1336.66,0.00016438,2]
[366067569,1750047042658,-1543.24,0.00016438,2]
[366067570,1750047042668,-603.0,0.00016438,2]
[366067571,1750047042678,-490.0,0.00016438,2]
[366067572,1750047042688,-490.0,0.00016438,2]
[366067573,1750047042698,-824.32,0.00016438,2]
[366067575,1750047042708,-552.5,0.00016438,2]
[366067576,1750047042718,-490.0,0.00016438,2]
[366067577,1750047042727,-499.65872488,0.00016438,2]
[366067578,1750047042737,-300.0,0.00016438,2]
[366067579,1750047042747,-497.12236318,0.00016438,2]
[366067580,1750047042757,-489.91118686,0.00016438,2]
[366067581,1750047042767,-503.7446977,0.00016438,2]
[366067582,1750047042778,-490.0,0.00016438,2]
[366067583,1750047042787,-568.46249666,0.00016438,2]
[366067584,1750047042797,-490.0,0.00016438,2]
[366067585,1750047042807,-1392.74,0.00016438,2]
[366067586,1750047042817,-700.62,0.00016438,2]
[366067587,1750047042828,-376.76920502,0.00016438,2]
[366067588,1750047042838,-490.0,0.00016438,2]
[366067589,1750047042850,-490.0,0.00016438,2]
[366067590,1750047042859,-490.0,0.00016438,2]
[366067591,1750047042870,-490.0,0.00016438,2]
[366067592,1750047042880,-1265.01,0.00016438,2]
[366067593,1750047042891,-493.50828605,0.00016438,2]
[366067594,1750047042901,-490.0,0.00016438,2]
[366067595,1750047042911,-1244.46,0.00016438,2]
[366067596,1750047042922,-490.0,0.00016438,2]
[366067597,1750047042932,-490.0,0.00016438,2]
[366067598,1750047042942,-490.0,0.00016438,2]
[366067599,1750047042952,-641.61,0.00016438,2]
[366067600,1750047042962,-897.43,0.00016438,2]
[366067601,1750047042971,-501.83223207,0.00016438,2]
[366067602,1750047042981,-490.0,0.00016438,2]
[366067603,1750047042991,-490.81088513,0.00016438,2]
[366067604,1750047043002,-923.58,0.00016438,2]
[366067605,1750047043013,-769.08,0.00016438,2]
[366067606,1750047043023,-999.05,0.00016438,2]
[366067607,1750047043033,-490.0,0.00016438,2]
[366067608,1750047043042,-490.0,0.00016438,2]
[366067609,1750047043052,-496.00556667,0.00016438,2]
[366067610,1750047043062,-526.78,0.00016438,2]
[366067611,1750047043072,-490.0,0.00016438,2]
[366067612,1750047043081,-1826.64,0.00016438,2]
[366067613,1750047043091,-499.32236933,0.00016438,2]
[366067614,1750047043101,-490.0,0.00016438,2]
[366067615,1750047043110,-490.0,0.00016438,2]
[366067616,1750047043120,-430.0,0.00016438,2]
[366067617,1750047043129,-1497.95,0.00016438,2]
[366067618,1750047043139,-490.0,0.00016438,2]
[366067619,1750047043148,-949.65,0.00016438,2]
[366067620,1750047043158,-490.0,0.00016438,2]
[366067621,1750047043167,-490.0,0.00016438,2]
[366067622,1750047043177,-597.45,0.00016438,2]
[366067623,1750047043186,-495.17346269,0.00016438,2]
[366067624,1750047043196,-550.72,0.00016438,2]
[366067625,1750047043207,-1656.76,0.00016438,2]
[366067627,1750047043217,-491.2506183,0.00016438,2]
[366067629,1750047043226,-490.0,0.00016438,2]
[366067630,1750047043236,-1052.69,0.00016438,2]
[366067631,1750047043246,-490.0,0.00016438,2]
[366067632,1750047043256,-492.18734899,0.00016438,2]
[366067633,1750047043267,-613.97,0.00016438,2]
[366067634,1750047043278,-675.3,0.00016438,2]
[366067635,1750047043288,-496.89848341,0.00016438,2]
[366067636,1750047043298,-411.20649589,0.00016438,2]
[366067637,1750047043307,-1578.62,0.00016438,2]
[366067638,1750047043319,-492.43317847,0.00016438,2]
[366067639,1750047043329,-1164.24,0.00016438,2]
[366067640,1750047043341,-490.0,0.00016438,2]
[366067641,1750047043351,-490.0,0.00016438,2]